bitfinex-derivatives/quotes_BTCF0:USTF0_20250811
["timestamp","ask_amount","ask_price","bid_price","bid_amount"]
[1754933807417,0.98053619,119760.0,119750.0,0.45521004]
[1754933810518,0.10655619,119760.0,119750.0,0.83844814]
[1754933810816,0.92058619,119760.0,119750.0,0.45521004]
[1754933811009,0.92058619,119760.0,119750.0,0.83844814]
[1754933811323,0.89259619,119760.0,119750.0,0.83844814]
[1754933813016,0.96597619,119760.0,119750.0,0.83844814]
[1754933813521,0.96101619,119760.0,119750.0,0.83844814]
[1754933814217,0.0879536,119760.0,119750.0,1.13896294]
[1754933814420,0.6711536,119760.0,119750.0,1.13896294]
[1754933814922,0.7546535,119760.0,119750.0,1.13896294]
[1754933815220,0.5568535,119760.0,119750.0,1.13896294]
[1754933815420,0.4709135,119760.0,119750.0,1.52220104]
[1754933815822,0.4709135,119760.0,119750.0,1.13896294]
[1754933816022,0.3874136,119760.0,119750.0,1.52220104]
[1754933816223,0.49415975,119760.0,119750.0,1.68921004]
[1754933816431,0.57765955,119760.0,119750.0,1.69121004]
[1754933817121,0.8693398,119760.0,119750.0,1.69121004]
[1754933817327,0.2504506,119790.0,119780.0,0.0834859]
[1754933817626,1.0362906,119790.0,119780.0,0.466724]
[1754933817926,1.0362906,119790.0,119780.0,0.633692]
[1754933818727,1.0849606,119790.0,119780.0,0.633692]
[1754933818920,1.0850606,119790.0,119780.0,0.633792]
[1754933819116,0.9528249,119790.0,119780.0,0.633792]
[1754933819325,0.9528249,119790.0,119780.0,0.634792]
[1754933819622,1.0014949,119790.0,119780.0,0.634792]
[1754933820117,1.0509149,119790.0,119780.0,0.637792]
[1754933820622,2.28578,119790.0,119780.0,0.64626293]
[1754933820812,2.3692589,119790.0,119780.0,0.637792]
[1754933821423,2.4179289,119790.0,119780.0,0.637792]
[1754933822719,1.38720218,119810.0,119800.0,0.083472]
[1754933822916,2.30486298,119810.0,119800.0,0.8499482]
[1754933823112,2.30486298,119810.0,119800.0,0.4667101]
[1754933823324,2.39471298,119810.0,119800.0,0.4667101]
[1754933823526,2.22777168,119810.0,119800.0,0.4667101]
[1754933823921,2.22877168,119810.0,119800.0,0.4697101]
[1754933824227,2.22887168,119810.0,119800.0,0.4698101]
[1754933826428,2.22887168,119810.0,119800.0,0.4748101]
[1754933831033,2.23032463,119810.0,119800.0,0.0915722]
[1754933831225,2.23032463,119810.0,119800.0,0.4748103]
[1754933832129,2.23032463,119810.0,119800.0,0.5045403]
[1754933836036,2.23032463,119810.0,119800.0,0.4748103]
[1754933837533,2.23032463,119810.0,119800.0,0.4805203]
[1754933838940,1.44480463,119810.0,119800.0,0.8813484]
[1754933839131,2.22964463,119810.0,119800.0,0.8862484]
[1754933839331,2.22964463,119810.0,119800.0,0.5030103]
[1754933840038,2.22964463,119810.0,119800.0,0.1197722]
[1754933840240,2.22964463,119810.0,119800.0,0.5030103]
[1754933840732,3.72964463,119810.0,119800.0,0.5030103]
[1754933841231,3.72964463,119810.0,119800.0,0.4748103]
[1754933841432,3.72964463,119810.0,119800.0,0.4805203]
[1754933842439,3.72964463,119810.0,119800.0,0.4748103]
[1754933844342,3.72964463,119810.0,119800.0,0.4805203]
[1754933845548,3.72964463,119810.0,119800.0,0.0972822]
[1754933845750,2.22964463,119810.0,119800.0,0.4748103]
[1754933845937,2.22964463,119810.0,119800.0,0.0915722]
[1754933846139,2.22964463,119810.0,119800.0,0.4748103]
[1754933847045,1.35495463,119810.0,119800.0,0.4748103]
[1754933847348,0.11507338,119810.0,119800.0,1.0525744]
[1754933848546,0.06640338,119810.0,119800.0,1.0495744]
[1754933848746,0.83,119820.0,119810.0,0.0834652]
[1754933848939,0.83,119820.0,119810.0,0.4942933]
[1754933849246,0.83,119820.0,119810.0,0.6612213]
[1754933849949,0.89656653,119820.0,119810.0,0.6612213]
[1754933850148,0.89766653,119820.0,119810.0,0.6613213]
[1754933850746,1.41315284,119850.0,119840.0,0.0834443]
[1754933850946,2.19759284,119850.0,119840.0,0.4666824]
[1754933851141,2.19904531,119850.0,119840.0,0.0834443]
[1754933851344,2.34170531,119850.0,119840.0,0.4666824]
[1754933851548,2.34170531,119850.0,119840.0,0.0834443]
[1754933851748,2.16627467,119850.0,119840.0,0.8775105]
[1754933851950,0.92861247,119850.0,119840.0,0.8776105]
[1754933852250,1.02266,119850.0,119840.0,0.8776105]
[1754933852642,1.02266,119850.0,119840.0,0.8786105]
[1754933852840,1.02266,119850.0,119840.0,0.8826105]
[1754933853549,0.06815172,119850.0,119840.0,1.0367505]
[1754933853757,0.11359172,119850.0,119840.0,1.0494905]
[1754933855251,0.08497291,119880.0,119870.0,0.0834235]
[1754933855452,1.07029194,119880.0,119870.0,0.4715616]
[1754933855650,1.06197291,119880.0,119870.0,0.4715616]
[1754933855854,1.02399231,119880.0,119870.0,0.4715616]
[1754933856046,1.02254,119880.0,119870.0,0.4794016]
[1754933856244,1.02254,119880.0,119870.0,0.8626397]
[1754933856447,1.02264,119880.0,119870.0,0.4795016]
[1754933856849,0.82988,119880.0,119870.0,0.8637397]
[1754933857150,1.17136854,119880.0,119870.0,0.0845235]
[1754933857350,1.08795214,119880.0,119870.0,0.4697616]
[1754933857549,1.08795214,119880.0,119870.0,0.4746616]
[1754933857751,1.17136854,119880.0,119870.0,0.4746616]
[1754933858149,0.99233214,119880.0,119870.0,0.4825016]
[1754933858353,1.17124854,119880.0,119870.0,0.4697616]
[1754933859152,0.26792862,119900.0,119890.0,0.0834095]
[1754933859459,1.14754862,119900.0,119890.0,0.4666476]
[1754933859757,1.29020862,119900.0,119890.0,0.4666476]
[1754933860455,1.29020862,119900.0,119890.0,0.4706476]
[1754933860656,1.29020862,119900.0,119890.0,0.4707476]
[1754933860657,1.29030862,119900.0,119890.0,0.4707476]
[1754933861053,1.29030862,119900.0,119890.0,0.0905097]
[1754933861257,1.5834097,119890.0,119880.0,0.6334754]
[1754933861459,1.7260697,119890.0,119880.0,0.6334754]
[1754933861959,0.86041931,119900.0,119890.0,0.0834098]
[1754933862154,0.86041931,119900.0,119890.0,0.5841879]
[1754933862355,2.45601931,119900.0,119890.0,0.5970279]
[1754933862550,2.59867931,119900.0,119890.0,0.5970279]
[1754933862960,2.59867931,119900.0,119890.0,0.5842879]
[1754933863161,2.59867931,119900.0,119890.0,0.5179279]
[1754933863463,2.68208221,119900.0,119890.0,0.5189279]
[1754933864055,2.68308221,119900.0,119890.0,0.5189279]
[1754933865062,2.68308191,119900.0,119890.0,0.5901879]
[1754933865567,2.68308191,119900.0,119890.0,0.4677479]
[1754933869465,2.59967931,119900.0,119890.0,0.4677479]
[1754933869966,2.68308191,119900.0,119890.0,0.4677479]
[1754933870464,2.59967931,119900.0,119890.0,0.4677479]
[1754933870759,1.81571931,119900.0,119890.0,0.4677479]
[1754933870967,2.59939931,119900.0,119890.0,0.6044079]
[1754933871369,2.59939931,119900.0,119890.0,0.612565]
[1754933873268,1.09939931,119900.0,119890.0,0.6044079]
[1754933873669,2.68280191,119900.0,119890.0,0.5217079]
[1754933873969,2.59939931,119900.0,119890.0,0.5947779]
[1754933874169,2.59939931,119900.0,119890.0,0.6030479]
[1754933876176,1.09927931,119900.0,119890.0,0.64754484]
[1754933876474,1.09713931,119900.0,119890.0,0.64754484]
[1754933877275,1.09713931,119900.0,119890.0,0.6030479]
[1754933877476,0.31357931,119900.0,119890.0,0.6030479]
[1754933878075,1.09709931,119900.0,119890.0,0.6393179]
[1754933878772,1.09709931,119900.0,119890.0,0.6030479]
[1754933881874,0.31357931,119900.0,119890.0,0.6030479]
[1754933882073,0.31357931,119900.0,119890.0,0.6393179]
[1754933882274,0.31357931,119900.0,119890.0,0.2560798]
[1754933882474,0.31357931,119900.0,119890.0,0.6030479]
[1754933882667,0.31357931,119900.0,119890.0,0.5356479]
[1754933883169,0.31357931,119900.0,119890.0,0.5947779]
[1754933883470,0.31357931,119900.0,119890.0,0.6030479]
[1754933885178,0.31357931,119900.0,119890.0,0.2198098]
[1754933885385,0.31357931,119900.0,119890.0,0.4677479]
[1754933885674,0.39698191,119900.0,119890.0,0.0845098]
[1754933885979,0.39698191,119900.0,119890.0,0.0834096]
[1754933885980,0.64710601,119900.0,119890.0,0.0834096]
[1754933886178,0.64855788,119900.0,119890.0,0.0834096]
[1754933886379,0.64855788,119900.0,119880.0,0.6334754]
[1754933886578,0.50803788,119900.0,119890.0,0.0834096]
[1754933886777,1.29247788,119900.0,119890.0,0.0354796]
[1754933887176,1.38755788,119900.0,119890.0,0.0354796]
[1754933887477,1.38665788,119900.0,119890.0,0.0355796]
[1754933887678,0.0834095,119890.0,119880.0,0.1668225]
[1754933887870,0.2428395,119890.0,119880.0,0.1668225]
[1754933888270,0.2428395,119890.0,119880.0,0.0834105]
[1754933888673,0.2428395,119890.0,119880.0,0.4666486]
[1754933888878,0.2429395,119890.0,119880.0,0.4667545]
[1754933889183,0.2469395,119890.0,119880.0,0.4667545]
[1754933890279,0.2509395,119890.0,119880.0,0.4667545]
[1754933891583,0.2509395,119890.0,119880.0,0.5127045]
[1754933892281,0.16753,119890.0,119880.0,0.5127045]
[1754933892781,0.16753,119890.0,119880.0,0.9292726]
[1754933892979,0.95105,119890.0,119880.0,1.0917626]
[1754933893278,0.16753,119890.0,119880.0,1.0917626]
[1754933893582,0.95105,119890.0,119880.0,1.0917626]
[1754933894878,0.95105,119890.0,119880.0,0.3252864]
[1754933895080,0.95105,119890.0,119880.0,1.0917626]
[1754933896484,1.0344595,119890.0,119880.0,1.0917626]
[1754933897279,0.85597,119890.0,119880.0,1.0917626]
[1754933897480,0.07791118,119900.0,119880.0,1.4253149]
[1754933897680,0.07791118,119900.0,119890.0,0.5181876]
[1754933897681,0.86033931,119900.0,119890.0,0.5181876]
[1754933897885,0.07645931,119900.0,119890.0,0.7090676]
[1754933899088,0.07645931,119900.0,119890.0,0.71754232]
[1754933899282,0.07645931,119900.0,119890.0,0.71764232]
[1754933899283,0.07655931,119900.0,119890.0,0.71764232]
[1754933899879,1.5,119910.0,119890.0,1.66823682]
[1754933900180,1.5,119910.0,119900.0,0.6126506]
[1754933900385,1.55403,119910.0,119900.0,0.7090606]
[1754933900582,0.12023965,119910.0,119900.0,0.7090606]
[1754933900887,0.19448965,119910.0,119900.0,0.7090606]
[1754933901082,0.19458965,119910.0,119900.0,0.7091606]
[1754933901691,0.14957965,119910.0,119900.0,0.7151606]
[1754933901890,0.14957965,119910.0,119900.0,0.7191606]
[1754933909390,0.14937965,119910.0,119900.0,0.7191606]
[1754933912192,0.14937965,119910.0,119900.0,0.2381125]
[1754933912193,0.31079525,119910.0,119900.0,0.2381125]
[1754933912499,0.31079525,119910.0,119900.0,0.1417025]
[1754933912798,0.31079525,119910.0,119900.0,0.5249406]
[1754933913294,0.31079525,119910.0,119900.0,0.7191606]
[1754933915902,0.22739965,119910.0,119900.0,0.7191606]
[1754933916492,0.31079515,119910.0,119900.0,0.7191606]
[1754933916698,0.22739965,119910.0,119900.0,0.7191606]
[1754933917595,0.31079515,119910.0,119900.0,0.7191606]
[1754933918300,0.22739965,119910.0,119900.0,0.7191606]
[1754933919892,0.31079525,119910.0,119900.0,0.7191606]
[1754933920198,0.22739965,119910.0,119900.0,0.7191606]
[1754933923196,0.31079525,119910.0,119900.0,0.7191606]
[1754933923499,0.31079525,119910.0,119900.0,0.3359225]
[1754933923695,0.69548512,119910.0,119900.0,0.0583]
[1754933925697,0.69548512,119910.0,119900.0,0.0101]
[1754933925901,0.0834095,119890.0,119880.0,0.2150311]
[1754933926097,1.0278595,119890.0,119880.0,0.2150311]
[1754933926298,1.0278595,119890.0,119880.0,0.6309492]
[1754933926897,1.0278595,119890.0,119880.0,0.599073]
[1754933927098,1.0278595,119890.0,119880.0,0.599173]
[1754933927099,1.0299595,119890.0,119880.0,0.599173]
[1754933927396,1.0309595,119890.0,119880.0,0.08098]
[1754933928302,1.0309595,119890.0,119880.0,0.1643964]
[1754933928501,1.0309595,119890.0,119880.0,0.08098]
[1754933928697,1.0309595,119890.0,119880.0,0.0483]
[1754933928897,1.4141976,119890.0,119880.0,0.0483]
[1754933929200,1.4141976,119890.0,119880.0,0.04651]
[1754933929395,1.0309595,119890.0,119880.0,0.04651]
[1754933931300,1.4141976,119890.0,119880.0,0.0001]
[1754933931902,0.0834234,119870.0,119850.0,0.2503082]
[1754933932203,1.1964678,119860.0,119850.0,0.5595254]
[1754933932405,1.20471965,119860.0,119850.0,0.5595254]
[1754933932596,1.20471965,119860.0,119850.0,0.6960854]
[1754933933097,1.20471965,119860.0,119850.0,0.5224981]
[1754933933303,1.20481965,119860.0,119850.0,0.6127481]
[1754933933699,1.20481965,119860.0,119850.0,0.22951]
[1754933933898,1.20581965,119860.0,119850.0,0.6961854]
[1754933934303,1.20981965,119860.0,119850.0,0.6961854]
[1754933936609,1.20981965,119860.0,119850.0,0.3129473]
[1754933936802,1.20981965,119860.0,119850.0,0.6961854]
[1754933937309,1.20981965,119860.0,119850.0,0.04651]
[1754933937507,1.59305775,119860.0,119850.0,0.04651]
[1754933938003,1.75992975,119860.0,119850.0,0.0001]
[1754933938602,1.89862975,119860.0,119850.0,0.0001]
[1754933938999,1.81519335,119860.0,119830.0,0.04641]
[1754933939205,0.4666822,119840.0,119830.0,0.04641]
[1754933939400,1.0296041,119840.0,119830.0,0.04641]
[1754933940301,1.0296041,119840.0,119830.0,0.04841]
[1754933940503,0.2463041,119840.0,119830.0,0.04851]
[1754933940704,0.2463041,119840.0,119830.0,0.6981991]
[1754933940903,0.8972541,119840.0,119830.0,0.6981991]
[1754933941513,0.78358,119840.0,119830.0,0.6981991]
[1754933941812,1.09582548,119840.0,119830.0,0.314961]
[1754933942011,1.09582548,119840.0,119830.0,0.6981991]
[1754933942405,1.09582548,119840.0,119830.0,0.7001991]
[1754933942607,1.09582548,119840.0,119830.0,0.23351]
[1754933942805,1.09582548,119840.0,119830.0,0.7001991]
[1754933943006,1.09582548,119840.0,119830.0,0.6991991]
[1754933943499,1.09582548,119840.0,119830.0,0.315961]
[1754933943706,1.09582548,119840.0,119830.0,0.6991991]
[1754933944107,1.09582548,119840.0,119830.0,0.315961]
[1754933944305,1.09582548,119840.0,119830.0,0.6991991]
[1754933944613,1.01238138,119840.0,119830.0,0.315961]
[1754933944809,0.84962138,119840.0,119830.0,0.6991991]
[1754933946510,0.85394138,119840.0,119830.0,0.6991991]
[1754933947111,0.93738548,119840.0,119830.0,0.6991991]
[1754933947511,0.99025548,119840.0,119830.0,0.6991991]
[1754933947710,1.06517548,119840.0,119830.0,0.6991991]
[1754933949309,1.06517548,119840.0,119830.0,0.6090491]
[1754933949513,1.06517548,119840.0,119830.0,0.6991991]
[1754933951818,1.06517548,119840.0,119830.0,0.132961]
[1754933952115,1.06517548,119840.0,119830.0,0.04951]
[1754933952615,1.06517548,119840.0,119830.0,0.132961]
[1754933953006,1.08365851,119840.0,119830.0,0.04951]
[1754933953811,1.08365851,119840.0,119830.0,0.132961]
[1754933955020,1.63379261,119840.0,119830.0,0.0031]
[1754933955523,1.63379261,119840.0,119830.0,0.04951]
[1754933955920,1.25055451,119840.0,119830.0,0.04951]
[1754933956312,1.25155451,119840.0,119830.0,0.04951]
[1754933956513,1.25255451,119840.0,119830.0,0.04651]
[1754933957219,1.08565851,119840.0,119830.0,0.04651]
[1754933957426,1.08565851,119840.0,119830.0,0.4616281]
[1754933957817,1.08565851,119840.0,119830.0,0.5100981]
[1754933958015,1.08565851,119840.0,119830.0,0.12686]
[1754933958625,1.08665851,119840.0,119830.0,0.07839]
[1754933958820,1.08665851,119840.0,119830.0,0.04651]
[1754933960527,1.46989661,119840.0,119830.0,0.04651]
[1754933963827,1.60859661,119840.0,119830.0,0.04651]
[1754933964227,1.22535851,119840.0,119830.0,0.04651]
[1754933964529,1.60859661,119840.0,119830.0,0.04651]
[1754933965326,1.22535851,119840.0,119830.0,0.04651]
[1754933965530,1.22203851,119840.0,119830.0,0.07822]
[1754933965728,1.22203851,119840.0,119830.0,0.12669]
[1754933966429,1.22203851,119840.0,119830.0,0.18847]
[1754933966624,1.22203851,119840.0,119830.0,0.23332]
[1754933967224,1.60527661,119840.0,119830.0,0.07434]
[1754933967430,1.60527661,119840.0,119830.0,0.04651]
[1754933968332,1.22203851,119840.0,119830.0,0.04651]
[1754933968626,1.46657661,119840.0,119830.0,0.04651]
[1754933971230,1.46657661,119840.0,119830.0,0.0001]
[1754933974138,2.62065661,119840.0,119830.0,0.0001]
[1754933974837,2.23741851,119840.0,119830.0,0.04733]
[1754933975029,2.23677851,119840.0,119830.0,0.6173781]
[1754933975437,2.23677851,119840.0,119830.0,0.23414]
[1754933975638,2.23677851,119840.0,119830.0,0.04733]
[1754933976841,2.62001661,119840.0,119830.0,0.04733]
[1754933977543,2.23677851,119840.0,119830.0,0.04733]
[1754933978634,2.37547851,119840.0,119830.0,0.04733]
[1754933980942,2.75871661,119840.0,119830.0,0.04733]
[1754933982144,2.37547851,119840.0,119830.0,0.23414]
[1754933984037,2.37547851,119840.0,119830.0,0.14082]
[1754933984242,2.75871661,119840.0,119830.0,0.07904]
[1754933984832,2.37547851,119840.0,119830.0,0.07904]
[1754933986546,2.75871661,119840.0,119830.0,0.0001]
[1754933987544,0.083451,119830.0,119820.0,0.04723]
[1754933987849,0.083465,119810.0,119800.0,0.28181135]
[1754933988147,1.4086531,119810.0,119800.0,0.14987445]
[1754933988345,1.4086531,119810.0,119800.0,0.22717445]
[1754933988543,1.4086531,119810.0,119800.0,0.12876]
[1754933988743,1.025515,119810.0,119800.0,0.12886]
[1754933988940,1.025515,119810.0,119800.0,0.16316]
[1754933989142,1.025515,119810.0,119800.0,0.70472]
[1754933989548,0.78486,119810.0,119800.0,1.0879581]
[1754933989847,0.78586,119810.0,119800.0,0.70272]
[1754933990249,0.869325,119810.0,119800.0,0.70272]
[1754933990446,0.932415,119810.0,119800.0,0.70272]
[1754933990648,1.027515,119810.0,119800.0,0.70272]
[1754933990850,1.027515,119810.0,119800.0,0.85259445]
[1754933991848,1.027515,119810.0,119800.0,0.70272]
[1754933992049,1.026515,119810.0,119800.0,0.70272]
[1754933992545,1.026515,119810.0,119800.0,0.3194819]
[1754933992750,1.03498511,119810.0,119800.0,0.70272]
[1754933992948,1.03498511,119810.0,119800.0,0.2246819]
[1754933993147,1.03498511,119810.0,119800.0,0.14121]
[1754933993450,1.03498511,119810.0,119800.0,0.2246819]
[1754933993650,1.03498511,119810.0,119800.0,0.70272]
[1754933996147,0.157675,119810.0,119800.0,0.70272]
[1754933996348,0.868285,119810.0,119800.0,0.70272]
[1754933996740,0.948155,119810.0,119800.0,0.70272]
[1754933996946,0.0011,119810.0,119800.0,1.0859581]
[1754933997252,0.78482,119810.0,119800.0,0.3194819]
[1754933997553,1.026475,119810.0,119800.0,0.70272]
[1754933997950,0.94301,119810.0,119800.0,0.70272]
[1754933998248,0.0011,119810.0,119800.0,1.0859581]
[1754933998451,0.78478,119810.0,119800.0,1.0859581]
[1754933998646,0.73478,119810.0,119800.0,1.0858581]
[1754933999753,0.73478,119810.0,119800.0,1.23573255]
[1754933999948,0.73488,119810.0,119800.0,1.23583255]
[1754934000345,0.0001,119810.0,119800.0,1.23583255]
[1754934000544,0.0001,119810.0,119800.0,1.40276855]
[1754934000749,0.8670982,119820.0,119810.0,0.083465]
[1754934000945,0.25873319,119830.0,119810.0,0.8695384]
[1754934000946,0.2503676,119830.0,119810.0,0.8695384]
[1754934001150,0.3454676,119830.0,119820.0,0.6067161]
[1754934001360,1.1921976,119830.0,119820.0,0.85248055]
[1754934001951,1.2378276,119830.0,119820.0,0.85248055]
[1754934002152,1.2379276,119830.0,119820.0,0.7027061]
[1754934002352,1.24628399,119830.0,119820.0,0.7027061]
[1754934003364,1.24828399,119830.0,119820.0,0.7027061]
[1754934004357,1.24928399,119830.0,119820.0,0.7027061]
[1754934004956,1.24928399,119830.0,119820.0,0.6079061]
[1754934005253,1.24928399,119830.0,119820.0,0.083558]
[1754934005457,1.24928399,119830.0,119820.0,0.0835581]
[1754934005857,1.24928399,119830.0,119820.0,0.1287781]
[1754934006050,1.24928399,119830.0,119820.0,0.04532]
[1754934006260,1.24928399,119830.0,119820.0,0.5120162]
[1754934006459,1.24928399,119830.0,119820.0,0.0001]
[1754934007567,1.24928399,119830.0,119820.0,0.0835581]
[1754934008255,1.24928399,119830.0,119820.0,0.0001]
[1754934009862,1.63252209,119830.0,119820.0,0.0001]
[1754934010164,0.0834651,119810.0,119800.0,0.2504121]
[1754934010359,1.1017451,119810.0,119800.0,0.44550655]
[1754934010560,1.1017451,119810.0,119800.0,0.82874465]
[1754934010761,1.1017451,119810.0,119800.0,0.86082465]
[1754934011068,1.1017451,119810.0,119800.0,0.91228465]
[1754934011262,1.1018451,119810.0,119800.0,0.91238465]
[1754934011463,1.1018451,119810.0,119800.0,0.82991355]
[1754934011661,1.1018451,119810.0,119800.0,0.44667545]
[1754934011866,1.1018451,119810.0,119800.0,0.27966645]
[1754934012769,1.1018451,119810.0,119800.0,0.129792]
[1754934012968,1.1018451,119810.0,119800.0,0.0011]
[1754934013665,1.4850832,119810.0,119800.0,0.0011]
[1754934014170,1.1018451,119810.0,119800.0,0.0011]
[1754934017475,1.4850832,119810.0,119800.0,0.0011]
[1754934019085,1.1018451,119810.0,119800.0,0.0011]
[1754934020585,1.4850832,119810.0,119800.0,0.0011]
[1754934020983,0.0834792,119790.0,119780.0,0.04676]
[1754934021285,0.9585292,119790.0,119780.0,0.04676]
[1754934021784,1.0962392,119790.0,119780.0,0.0001]
[1754934021994,1.4794773,119790.0,119780.0,0.0001]
[1754934022280,2.6338573,119790.0,119780.0,0.0002]
[1754934022781,2.64228886,119790.0,119780.0,0.0002]
[1754934023990,2.64228886,119790.0,119780.0,0.0022]
[1754934024484,2.64228886,119790.0,119780.0,0.0002]
[1754934024784,2.64928886,119790.0,119780.0,0.0012]
[1754934024982,2.26605076,119790.0,119780.0,0.0012]
[1754934025175,2.64928886,119790.0,119780.0,0.0012]
[1754934026485,2.26605076,119790.0,119780.0,0.0012]
[1754934026683,2.64928886,119790.0,119780.0,0.0012]
[1754934028177,0.0835001,119760.0,119750.0,0.35210524]
[1754934028384,1.0961801,119760.0,119750.0,0.91484334]
[1754934028589,1.0961801,119760.0,119750.0,0.44810004]
[1754934028796,1.4794182,119760.0,119750.0,0.21988004]
[1754934029083,0.083514,119740.0,119720.0,0.01]
[1754934029284,0.901691,119730.0,119720.0,0.05666]
[1754934029494,0.901691,119730.0,119720.0,0.1489]
[1754934029681,0.901691,119730.0,119720.0,0.321848]
[1754934030182,0.904271,119730.0,119720.0,0.23832]
[1754934030382,0.904271,119730.0,119720.0,0.321848]
[1754934030685,0.97000567,119730.0,119720.0,0.321848]
[1754934030987,0.97000567,119730.0,119720.0,0.7060861]
[1754934031177,0.97000567,119730.0,119720.0,0.322848]
[1754934031381,0.97200567,119730.0,119720.0,0.7060861]
[1754934031888,0.93552567,119730.0,119720.0,0.7060861]
[1754934032190,0.94374545,119730.0,119720.0,0.322848]
[1754934032486,0.10739467,119730.0,119720.0,0.7060861]
[1754934032679,0.85109467,119730.0,119720.0,0.7060861]
[1754934033082,0.85208467,119730.0,119720.0,0.7060861]
[1754934033283,0.97427567,119730.0,119720.0,0.7060861]
[1754934033486,0.98260177,119730.0,119720.0,0.7060861]
[1754934033783,0.89908077,119730.0,119720.0,0.7060861]
[1754934033989,0.89075467,119730.0,119720.0,0.7060861]
[1754934035480,0.97427567,119730.0,119720.0,0.6225581]
[1754934035882,0.97427567,119730.0,119720.0,0.23932]
[1754934036076,0.97427567,119730.0,119720.0,0.1499]
[1754934036486,0.97427567,119730.0,119720.0,0.08859]
[1754934037092,0.97427567,119730.0,119720.0,0.13731]
[1754934037489,0.97427567,119730.0,119720.0,0.220838]
[1754934037690,0.97427567,119730.0,119720.0,0.322848]
[1754934038091,0.97427567,119730.0,119720.0,0.23932]
[1754934038292,0.97572965,119730.0,119720.0,0.23932]
[1754934038487,0.97572965,119730.0,119720.0,0.19862]
[1754934038889,0.97572965,119730.0,119720.0,0.233428]
[1754934039092,0.97572965,119730.0,119720.0,0.322848]
[1754934039991,0.97572965,119730.0,119720.0,0.7060861]
[1754934040891,0.85266865,119730.0,119720.0,1.0893242]
[1754934041293,0.85266865,119730.0,119720.0,0.7060861]
[1754934041493,0.93618965,119730.0,119720.0,0.7060861]
[1754934041889,0.95143965,119730.0,119720.0,0.7060861]
[1754934042095,0.16795965,119730.0,119720.0,0.7060861]
[1754934042397,0.95143965,119730.0,119720.0,0.7060861]
[1754934042997,0.85266865,119730.0,119720.0,0.7060861]
[1754934043197,0.85121467,119730.0,119720.0,1.0893242]
[1754934044498,0.93473567,119730.0,119720.0,1.0893242]
[1754934045099,0.93473567,119730.0,119720.0,0.7060861]
[1754934045494,0.94998567,119730.0,119720.0,0.7060861]
[1754934046202,0.97439567,119730.0,119720.0,0.7060861]
[1754934046589,0.97280567,119730.0,119720.0,0.7060861]
[1754934047000,0.97439567,119730.0,119720.0,0.322848]
[1754934047201,0.97439567,119730.0,119720.0,0.7060861]
[1754934048311,0.97439567,119730.0,119720.0,0.233428]
[1754934048507,0.97584959,119730.0,119720.0,0.233428]
[1754934048705,0.97584959,119730.0,119720.0,0.320638]
[1754934049107,1.35908769,119730.0,119720.0,0.05776]
[1754934049406,0.97584959,119730.0,119720.0,0.141288]
[1754934050196,0.97584959,119730.0,119720.0,0.6648761]
[1754934050403,0.97584959,119730.0,119720.0,0.7042161]
[1754934050910,0.97584959,119730.0,119720.0,0.320978]
[1754934051105,0.97584959,119730.0,119720.0,0.281638]
[1754934051698,0.97584959,119730.0,119720.0,0.19811]
[1754934051906,0.97584959,119730.0,119720.0,0.233768]
[1754934052599,0.97584959,119730.0,119720.0,0.281638]
[1754934052800,0.97584959,119730.0,119720.0,0.320978]
[1754934054003,0.97584959,119730.0,119720.0,0.7042161]
[1754934058413,0.97584959,119730.0,119720.0,0.320978]
[1754934058612,0.97584959,119730.0,119720.0,0.7042161]
[1754934059808,0.93618959,119730.0,119720.0,0.7042161]
[1754934060317,0.85266859,119730.0,119720.0,1.2545022]
[1754934060511,0.85121467,119730.0,119720.0,1.2545022]
[1754934060706,0.85121467,119730.0,119720.0,1.0874542]
[1754934061915,0.93473567,119730.0,119720.0,1.0874542]
[1754934062615,0.85121467,119730.0,119720.0,1.0874542]
[1754934063123,0.06773467,119730.0,119720.0,1.2545022]
[1754934063811,0.78358,119740.0,119720.0,1.5550815]
[1754934064014,0.916884,119740.0,119730.0,0.6015791]
[1754934064220,0.930234,119740.0,119730.0,0.6940591]
[1754934064418,0.78358,119740.0,119730.0,0.6940591]
[1754934064614,0.0001,119740.0,119730.0,0.6940591]
[1754934064818,0.39233029,119760.0,119750.0,0.083507]
[1754934065018,1.27074393,119760.0,119750.0,0.6940451]
[1754934066123,1.27274393,119760.0,119750.0,0.6940451]
[1754934066320,1.27284393,119760.0,119750.0,0.6941451]
[1754934066520,1.27384393,119760.0,119750.0,0.6941451]
[1754934066723,1.27384393,119760.0,119750.0,0.131217]
[1754934066724,1.29064393,119760.0,119750.0,0.131217]
[1754934066909,1.29064393,119760.0,119750.0,0.5623251]
[1754934067109,1.28964393,119760.0,119750.0,0.6941451]
[1754934068123,1.35640411,119760.0,119750.0,0.6941451]
[1754934068623,1.35540411,119760.0,119750.0,0.6941451]
[1754934069417,1.33860411,119760.0,119750.0,0.6941451]
[1754934069727,1.08808741,119760.0,119750.0,0.223697]
[1754934069921,1.10488741,119760.0,119750.0,0.5144551]
[1754934070216,1.10488741,119760.0,119750.0,0.6941451]
[1754934076211,1.08808741,119760.0,119750.0,0.6941451]
[1754934077123,1.08808741,119760.0,119750.0,0.310907]
[1754934077315,1.10488741,119760.0,119750.0,0.6941451]
[1754934077823,1.10488741,119760.0,119750.0,0.310907]
[1754934078221,1.48812551,119760.0,119750.0,0.04771]
[1754934078522,1.10488741,119760.0,119750.0,0.04771]
[1754934078724,1.10488741,119760.0,119750.0,0.1312171]
[1754934078922,1.10488741,119760.0,119750.0,0.04771]
[1754934081312,1.10488741,119760.0,119750.0,0.1312171]
[1754934081922,1.10488741,119760.0,119750.0,0.2799971]
[1754934083028,1.10488741,119760.0,119750.0,0.1917571]
[1754934083924,1.10488741,119760.0,119750.0,0.6219352]
[1754934084125,1.10488741,119760.0,119750.0,0.6632352]
[1754934084426,1.10488741,119760.0,119750.0,0.6162952]
[1754934084622,1.10488741,119760.0,119750.0,0.2330571]
[1754934084920,1.10488741,119760.0,119750.0,0.10825]
[1754934085124,1.10488741,119760.0,119750.0,0.04771]
[1754934086228,1.10488741,119760.0,119750.0,0.1312171]
[1754934086622,1.10488741,119760.0,119750.0,0.2799971]
[1754934086825,1.10488741,119760.0,119750.0,0.3103471]
[1754934087325,1.10488741,119760.0,119750.0,0.6935852]
[1754934089021,1.10488741,119760.0,119750.0,0.3103471]
[1754934090026,1.48812551,119760.0,119750.0,0.0001]
[1754934091129,0.0835141,119740.0,119730.0,0.36676005]
[1754934091422,1.0231741,119740.0,119730.0,0.3960156]
[1754934092225,1.0231741,119740.0,119730.0,0.3970156]
[1754934092429,1.0232741,119740.0,119730.0,0.3971156]
[1754934093234,1.0232741,119740.0,119730.0,0.7823537]
[1754934093727,0.0836141,119740.0,119730.0,0.7823537]
[1754934093927,0.8666141,119740.0,119730.0,0.93222815]